[Event "Summer Prague Open-A 2024"]
[Site "Prague"]
[Date "2024.08.04"]
[Round "4.10"]
[White "Cichon, Bartlomiej"]
[Black "Petr, Jakub"]
[Result "1/2-1/2"]
[Annotator "RC"]
[ECO "B90"]
[WhiteElo "1992"]
[BlackElo "2243"]
[PlyCount "72"]
[EventDate "2024.08.02"]
[EventType "swiss"]
[EventCountry "CZE"]
[SourceTitle "playchess.com"]
[Source "ChessBase"]
[SourceQuality "1"]
[TimeControl "40/5400+30:1800+30"]

1. e4 {[%emt 0:08:25]} c5 {[%emt 0:00:16]} 2. Nf3 {[%emt 0:00:15]} d6 {[%emt 0:00:06]} 3. d4 {[%emt 0:00:05]} cxd4 {[%emt 0:00:05]} 4. Nxd4 {[%emt 0:00:03]} Nf6 {[%emt 0:00:07]} 5. Nc3 {[%emt 0:00:04]} a6 {[%emt 0:00:08]} 6. h3 {[%emt 0:00:04]} e6 {[%emt 0:00:40]} 7. g4 {[%emt 0:00:11]} d5 {[%emt 0:00:11]} 8. exd5 {[%emt 0:00:22]} Nxd5 {[%emt 0:00:07]} 9. Nde2 {[%emt 0:01:09]} Bb4 {[%emt 0:02:01]} 10. Bg2 {[%emt 0:00:38]} O-O {[%emt 0:02:35]} 11. O-O {[%emt 0:00:21]} Nxc3 {[%emt 0:02:14]} 12. Nxc3 {[%emt 0:00:05]} Qc7 {[%emt 0:01:51]} 13. Qd4 {[%emt 0:03:34]} Bd6 {[%emt 0:09:06]} 14. Rd1 {[%emt 0:16:13]} Be5 {[%emt 0:02:06]} 15. Qe3 {[%emt 0:03:26]} Nc6 {[%emt 0:13:50]} 16. Qc5 {[%emt 0:10:23]} Rd8 {[%emt 0:15:00]} 17. Be3 {[%emt 0:01:13]} Bd7 {[%emt 0:05:31]} 18. Qb6 {[%emt 0:12:28]} Be8 {[%emt 0:03:36]} 19. Na4 {[%emt 0:04:15]} Rxd1+ {[%emt 0:13:35]} 20. Rxd1 {[%emt 0:00:18]} Rd8 {[%emt 0:00:09]} 21. Rxd8 {[%emt 0:10:12]} Qxd8 {[%emt 0:00:08]} 22. Qxd8 {[%emt 0:01:56]} Nxd8 {[%emt 0:00:05]} 23. Nc5 {[%emt 0:00:38]} Bxb2 {[%emt 0:02:07]} 24. Nxb7 {[%emt 0:00:44]} Nxb7 {[%emt 0:00:06]} 25. Bxb7 {[%emt 0:00:03]} Bb5 {[%emt 0:00:08]} 26. f4 {[%emt 0:03:33]} a5 {[%emt 0:09:01]} 27. Kf2 {[%emt 0:03:31]} a4 {[%emt 0:01:24]} 28. Bf3 {[%emt 0:04:27]} Bc4 {[%emt 0:04:17]} 29. a3 {[%emt 0:00:42]} Bxa3 {[%emt 0:00:08]} 30. Bc6 {[%emt 0:00:27]} Kf8 {[%emt 0:00:50]} 31. Bxa4 {[%emt 0:00:34]} Ke7 {[%emt 0:00:22]} 32. Bc6 {[%emt 0:04:20]} Kd6 {[%emt 0:01:56]} 33. Be4 {[%emt 0:00:45]} g6 {[%emt 0:00:29]} 34. Bd4 {[%emt 0:00:41]} f5 {[%emt 0:01:25]} 35. Bf3 {[%emt 0:02:56]} Bc1 {[%emt 0:06:58]} 36. Kg3 {[%emt 0:02:03]} Bd2 {[%emt 0:00:17]} 1/2-1/2

[Event "Summer Prague Open-A 2024"]
[Site "Prague"]
[Date "2024.08.04"]
[Round "4.11"]
[White "Sramek, Vojtech"]
[Black "Bacak, Petr"]
[Result "1-0"]
[Annotator "RC"]
[ECO "B90"]
[WhiteElo "2237"]
[BlackElo "2049"]
[PlyCount "87"]
[EventDate "2024.08.02"]
[EventType "swiss"]
[EventCountry "CZE"]
[SourceTitle "playchess.com"]
[Source "ChessBase"]
[SourceQuality "1"]
[TimeControl "40/5400+30:1800+30"]

1. e4 {[%emt 0:00:03]} c5 {[%emt 0:00:06]} 2. Nf3 {[%emt 0:00:07]} d6 {[%emt 0:00:05]} 3. d4 {[%emt 0:00:04]} cxd4 {[%emt 0:00:05]} 4. Nxd4 {[%emt 0:00:05]} Nf6 {[%emt 0:00:05]} 5. Nc3 {[%emt 0:00:04]} a6 {[%emt 0:00:06]} 6. Be3 {[%emt 0:00:30]} e5 {[%emt 0:00:12]} 7. Nb3 {[%emt 0:00:19]} Be6 {[%emt 0:00:08]} 8. f3 {[%emt 0:00:07]} h5 {[%emt 0:00:07]} 9. Nd5 {[%emt 0:00:47]} Bxd5 {[%emt 0:00:36]} 10. exd5 {[%emt 0:00:06]} Nbd7 {[%emt 0:00:20]} 11. Qd2 {[%emt 0:00:27]} g6 {[%emt 0:00:41]} 12. O-O-O {[%emt 0:02:59]} Bg7 {[%emt 0:00:58]} 13. Kb1 {[%emt 0:02:35]} Rc8 {[%emt 0:01:29]} 14. Bg5 {[%emt 0:14:26]} Qc7 {[%emt 0:01:07]} 15. Bd3 {[%emt 0:00:50]} O-O {[%emt 0:13:03]} 16. h4 {[%emt 0:14:54]} Rfe8 {[%emt 0:07:37]} 17. g4 {[%emt 0:07:41]} e4 {[%emt 0:05:49]} 18. Bxe4 {[%emt 0:07:49]} hxg4 {[%emt 0:15:37]} 19. h5 {[%emt 0:08:16]} Rxe4 {[%emt 0:02:47]} 20. h6 {[%emt 0:01:53]} Bxh6 {[%emt 0:17:40]} 21. Bxf6 {[%emt 0:10:04]} Nxf6 {[%emt 0:07:34]} 22. Qxh6 {[%emt 0:00:18]} Nh5 {[%emt 0:02:07]} 23. fxe4 {[%emt 0:00:12]} Qxc2+ {[%emt 0:00:12]} 24. Ka1 {[%emt 0:00:05]} Qxe4 {[%emt 0:00:22]} 25. Qg5 {[%emt 0:03:10]} Kh7 {[%emt 0:05:09]} 26. Rhe1 {[%emt 0:01:21]} Qf5 {[%emt 0:01:10]} 27. Qe7 {[%emt 0:01:17]} Qf6 {[%emt 0:00:39]} 28. Qxf6 {[%emt 0:10:07]} Nxf6 {[%emt 0:00:06]} 29. Re7 {[%emt 0:00:38]} Kg7 {[%emt 0:00:11]} 30. Rxb7 {[%emt 0:01:55]} Rh8 {[%emt 0:00:56]} 31. Rc7 {[%emt 0:03:48]} g3 {[%emt 0:00:55]} 32. Rc2 {[%emt 0:02:32]} Ne4 {[%emt 0:00:43]} 33. a4 {[%emt 0:01:48]} f5 {[%emt 0:00:19]} 34. Nd4 {[%emt 0:00:38]} Kf6 {[%emt 0:00:24]} 35. b4 {[%emt 0:00:57]} f4 {[%emt 0:03:25]} 36. Re1 {[%emt 0:02:02]} Ng5 {[%emt 0:01:53]} 37. b5 {[%emt 0:00:40]} axb5 {[%emt 0:00:12]} 38. axb5 {[%emt 0:00:04]} Ra8+ {[%emt 0:00:41]} 39. Ra2 {[%emt 0:01:04]} Rb8 {[%emt 0:00:40]} 40. Ra6 {[%emt 0:02:10]} Nf7 {[%emt 0:01:28]} 41. Ra3 {[%emt 0:11:48]} Ne5 {[%emt 0:01:13]} 42. Rf1 {[%emt 0:02:14]} Kg5 {[%emt 0:01:28]} 43. Ne6+ {[%emt 0:00:32]} Kh6 {[%emt 0:01:13]} 44. Rh1# 1-0

[Event "Summer Prague Open-A 2024"]
[Site "Prague"]
[Date "2024.08.04"]
[Round "4.12"]
[White "Kuhn, Tobias"]
[Black "Dome, Michal"]
[Result "1/2-1/2"]
[Annotator "RC"]
[ECO "C07"]
[WhiteElo "2223"]
[BlackElo "1965"]
[PlyCount "98"]
[EventDate "2024.08.02"]
[EventType "swiss"]
[EventCountry "CZE"]
[SourceTitle "playchess.com"]
[Source "ChessBase"]
[SourceQuality "1"]
[TimeControl "40/5400+30:1800+30"]

1. e4 {[%emt 0:00:03]} e6 {[%emt 0:00:07]} 2. d4 {[%emt 0:00:06]} d5 {[%emt 0:00:05]} 3. Nd2 {[%emt 0:00:20]} c5 {[%emt 0:00:17]} 4. Ngf3 {[%emt 0:00:07]} cxd4 {[%emt 0:00:07]} 5. exd5 {[%emt 0:00:14]} Qxd5 {[%emt 0:00:06]} 6. Bc4 {[%emt 0:00:10]} Qd6 {[%emt 0:00:08]} 7. O-O {[%emt 0:00:20]} Nf6 {[%emt 0:00:05]} 8. Nb3 {[%emt 0:00:19]} Nc6 {[%emt 0:00:10]} 9. Nbxd4 {[%emt 0:00:31]} Nxd4 {[%emt 0:00:07]} 10. Nxd4 {[%emt 0:00:06]} Be7 {[%emt 0:00:04]} 11. c3 {[%emt 0:02:42]} O-O {[%emt 0:01:54]} 12. Re1 {[%emt 0:01:36]} a6 {[%emt 0:04:06]} 13. Qe2 {[%emt 0:06:17]} Qc7 {[%emt 0:04:43]} 14. Bg5 {[%emt 0:09:22]} Nd5 {[%emt 0:15:47]} 15. Bxe7 {[%emt 0:02:04]} Nxe7 {[%emt 0:00:06]} 16. Rad1 {[%emt 0:02:43]} Nc6 {[%emt 0:06:36]} 17. Qh5 {[%emt 0:14:33]} b5 {[%emt 0:13:51]} 18. Qc5 {[%emt 0:19:27]} Bd7 {[%emt 0:07:20]} 19. Bd3 {[%emt 0:01:58]} Rac8 {[%emt 0:02:42]} 20. Nf3 {[%emt 0:00:56]} g6 {[%emt 0:04:26]} 21. Qg5 {[%emt 0:02:44]} Kg7 {[%emt 0:01:18]} 22. Re4 {[%emt 0:07:03]} f6 {[%emt 0:02:02]} 23. Qe3 {[%emt 0:02:06]} Ne7 {[%emt 0:03:10]} 24. Rh4 {[%emt 0:10:06]} Ng8 {[%emt 0:01:14]} 25. Bc2 {[%emt 0:01:53]} Rce8 {[%emt 0:04:55]} 26. Qd3 {[%emt 0:02:07]} Re7 {[%emt 0:01:05]} 27. Rxh7+ {[%emt 0:02:28]} Kxh7 {[%emt 0:00:01]} 28. Qxg6+ {[%emt 0:00:10]} Kh8 {[%emt 0:00:01]} 29. Qh5+ {[%emt 0:00:08]} Nh6 {[%emt 0:00:52]} 30. Qxh6+ {[%emt 0:00:06]} Kg8 {[%emt 0:00:04]} 31. Rd4 {[%emt 0:03:11]} Rg7 {[%emt 0:04:02]} 32. Bb3 {[%emt 0:08:40]} Bc8 {[%emt 0:01:16]} 33. Re4 {[%emt 0:01:17]} Qf7 {[%emt 0:02:06]} 34. g3 {[%emt 0:00:53]} Re8 {[%emt 0:01:42]} 35. Nd4 {[%emt 0:00:21]} Rg6 {[%emt 0:01:24]} 36. Qe3 {[%emt 0:00:06]} f5 {[%emt 0:00:12]} 37. Re5 {[%emt 0:00:24]} f4 {[%emt 0:00:54]} 38. Qe2 {[%emt 0:00:39]} fxg3 {[%emt 0:01:24]} 39. hxg3 {[%emt 0:00:16]} Rf6 {[%emt 0:04:15]} 40. Qg4+ {[%emt 0:00:59]} Kf8 {[%emt 0:00:42]} 41. f4 {[%emt 0:15:25]} Rg6 {[%emt 0:00:52]} 42. Rg5 {[%emt 0:06:37]} Rxg5 {[%emt 0:02:14]} 43. Qxg5 {[%emt 0:00:01]} Qg7 {[%emt 0:01:34]} 44. Qc5+ {[%emt 0:00:09]} Qe7 {[%emt 0:00:23]} 45. Qh5 {[%emt 0:01:19]} Qg7 {[%emt 0:02:34]} 46. Qc5+ {[%emt 0:02:43]} Qe7 {[%emt 0:00:18]} 47. Qe5 {[%emt 0:01:07]} Qg7 {[%emt 0:01:51]} 48. Qd6+ {[%emt 0:03:24]} Qe7 {[%emt 0:00:16]} 49. Qe5 {[%emt 0:01:13]} Qg7 1/2-1/2

[Event "Summer Prague Open-A 2024"]
[Site "Prague"]
[Date "2024.08.04"]
[Round "4.13"]
[White "Flajsman, Pavel"]
[Black "Galymbek, Alikhan"]
[Result "0-1"]
[Annotator "RC"]
[ECO "A06"]
[WhiteElo "2188"]
[BlackElo "1970"]
[PlyCount "78"]
[EventDate "2024.08.02"]
[EventType "swiss"]
[EventCountry "CZE"]
[SourceTitle "playchess.com"]
[Source "ChessBase"]
[SourceQuality "1"]
[TimeControl "40/5400+30:1800+30"]

1. Nf3 {[%emt 0:00:02]} d5 {[%emt 0:06:38]} 2. g3 {[%emt 0:00:07]} e6 {[%emt 0:00:27]} 3. Bg2 {[%emt 0:00:10]} c5 {[%emt 0:00:05]} 4. O-O {[%emt 0:00:22]} Nf6 {[%emt 0:00:14]} 5. c4 {[%emt 0:02:59]} Be7 {[%emt 0:03:48]} 6. cxd5 {[%emt 0:01:12]} Nxd5 {[%emt 0:00:08]} 7. d4 {[%emt 0:03:41]} O-O {[%emt 0:01:41]} 8. e4 {[%emt 0:01:40]} Nf6 {[%emt 0:04:52]} 9. e5 {[%emt 0:01:37]} Nd5 {[%emt 0:00:05]} 10. dxc5 {[%emt 0:01:01]} Bxc5 {[%emt 0:00:38]} 11. Nbd2 {[%emt 0:00:29]} b6 {[%emt 0:05:09]} 12. a3 {[%emt 0:03:12]} Ba6 {[%emt 0:03:00]} 13. Re1 {[%emt 0:00:06]} Nd7 {[%emt 0:00:25]} 14. Ne4 {[%emt 0:05:55]} Be7 {[%emt 0:02:08]} 15. h4 {[%emt 0:19:32]} Qc7 {[%emt 0:04:08]} 16. Bg5 {[%emt 0:02:44]} Bxg5 {[%emt 0:08:07]} 17. hxg5 {[%emt 0:00:57]} Rac8 {[%emt 0:17:01]} 18. Nd6 {[%emt 0:01:23]} Rcd8 {[%emt 0:03:07]} 19. Rc1 {[%emt 0:04:46]} Qb8 {[%emt 0:00:04]} 20. Qa4 {[%emt 0:02:31]} Bd3 {[%emt 0:01:31]} 21. Rcd1 {[%emt 0:20:38]} Bg6 {[%emt 0:06:14]} 22. Nb5 {[%emt 0:01:54]} a5 {[%emt 0:02:51]} 23. b4 {[%emt 0:09:41]} Rc8 {[%emt 0:02:37]} 24. Rd2 {[%emt 0:06:28]} axb4 {[%emt 0:05:59]} 25. Nd6 {[%emt 0:00:51]} Nc5 {[%emt 0:09:50]} 26. Qb5 {[%emt 0:00:08]} bxa3 {[%emt 0:00:12]} 27. Nxc8 {[%emt 0:00:30]} Rxc8 {[%emt 0:00:02]} 28. Rc1 {[%emt 0:06:25]} Ne4 {[%emt 0:03:12]} 29. Rxc8+ {[%emt 0:00:20]} Qxc8 {[%emt 0:00:01]} 30. Rc2 {[%emt 0:00:54]} Nec3 {[%emt 0:00:06]} 31. Rc1 {[%emt 0:02:52]} Ne2+ {[%emt 0:00:30]} 32. Qxe2 {[%emt 0:00:13]} Qxc1+ {[%emt 0:00:04]} 33. Kh2 {[%emt 0:00:04]} h6 {[%emt 0:01:05]} 34. Nh4 Bb1 {[%emt 0:01:01]} 35. Bxd5 {[%emt 0:01:29]} exd5 {[%emt 0:01:07]} 36. e6 {[%emt 0:00:01]} Be4 {[%emt 0:01:02]} 37. f3 {[%emt 0:00:56]} Qc2 {[%emt 0:00:15]} 38. Qxc2 {[%emt 0:01:06]} Bxc2 {[%emt 0:00:02]} 39. e7 {[%emt 0:00:16]} Ba4 {[%emt 0:00:01]} 0-1

[Event "Summer Prague Open-A 2024"]
[Site "Prague"]
[Date "2024.08.04"]
[Round "4.14"]
[White "Omarsson, Adam"]
[Black "Golenia, Jan"]
[Result "0-1"]
[Annotator "ChessBase"]
[ECO "E52"]
[WhiteElo "1970"]
[BlackElo "2188"]
[PlyCount "176"]
[EventDate "2024.08.02"]
[EventType "swiss"]
[EventCountry "CZE"]
[SourceTitle "playchess.com"]
[Source "ChessBase"]
[SourceQuality "1"]
[TimeControl "40/5400+30:1800+30"]

1. d4 {[%emt 0:00:02]} Nf6 {[%emt 0:10:42]} 2. c4 {[%emt 0:00:04]} e6 {[%emt 0:00:55]} 3. Nc3 {[%emt 0:00:31]} Bb4 {[%emt 0:00:34]} 4. e3 {[%emt 0:00:08]} O-O {[%emt 0:00:13]} 5. Nf3 {[%emt 0:00:04]} d5 {[%emt 0:00:37]} 6. Bd3 {[%emt 0:00:17]} b6 {[%emt 0:00:20]} 7. O-O {[%emt 0:01:43]} Bb7 {[%emt 0:03:11]} 8. a3 {[%emt 0:00:10]} Bd6 {[%emt 0:03:57]} 9. cxd5 {[%emt 0:00:39]} exd5 {[%emt 0:00:13]} 10. Ne5 {[%emt 0:07:03]} Nbd7 {[%emt 0:04:03]} 11. f4 {[%emt 0:00:19]} Ne4 {[%emt 0:01:55]} 12. Qc2 {[%emt 0:02:22]} Ndf6 {[%emt 0:01:05]} 13. Bd2 {[%emt 0:06:42]} c5 {[%emt 0:06:58]} 14. Rac1 {[%emt 0:06:55]} Rc8 {[%emt 0:01:44]} 15. Qd1 {[%emt 0:02:02]} Qe7 {[%emt 0:13:26]} 16. Qe2 {[%emt 0:05:17]} cxd4 {[%emt 0:07:42]} 17. exd4 {[%emt 0:00:08]} Nxc3 {[%emt 0:00:26]} 18. Rxc3 {[%emt 0:00:54]} Rxc3 {[%emt 0:01:26]} 19. Bxc3 {[%emt 0:00:13]} Ne4 {[%emt 0:01:17]} 20. Bd2 {[%emt 0:06:23]} f6 {[%emt 0:04:49]} 21. Nf3 {[%emt 0:01:56]} Re8 {[%emt 0:04:33]} 22. Re1 {[%emt 0:01:29]} Qc7 {[%emt 0:01:50]} 23. g3 {[%emt 0:01:54]} Re7 {[%emt 0:00:04]} 24. Bxe4 {[%emt 0:01:19]} dxe4 {[%emt 0:02:58]} 25. Nh4 {[%emt 0:00:38]} g6 {[%emt 0:06:26]} 26. Rc1 {[%emt 0:01:33]} Qd7 {[%emt 0:00:30]} 27. Be3 {[%emt 0:00:18]} Bd5 {[%emt 0:01:17]} 28. Qa6 {[%emt 0:04:01]} Qb7 {[%emt 0:01:54]} 29. Qxb7 {[%emt 0:00:35]} Bxb7 {[%emt 0:00:14]} 30. Kf2 {[%emt 0:00:16]} Kf7 {[%emt 0:01:08]} 31. Ng2 {[%emt 0:00:30]} h6 {[%emt 0:05:35]} 32. Nh4 {[%emt 0:03:18]} Rc7 {[%emt 0:02:51]} 33. Rxc7+ {[%emt 0:01:19]} Bxc7 {[%emt 0:00:04]} 34. Bd2 {[%emt 0:00:17]} g5 {[%emt 0:03:36]} 35. Ng2 {[%emt 0:03:52]} Ke6 {[%emt 0:00:13]} 36. Bc3 {[%emt 0:01:44]} b5 {[%emt 0:03:19]} 37. fxg5 {[%emt 0:03:12]} hxg5 {[%emt 0:00:57]} 38. h4 {[%emt 0:00:23]} gxh4 {[%emt 0:00:35]} 39. Nxh4 {[%emt 0:03:08]} e3+ {[%emt 0:00:14]} 40. Kxe3 {[%emt 0:00:47]} Bxg3 {[%emt 0:00:04]} 41. Ng6 {[%emt 0:31:05]} Kf5 {[%emt 0:31:41]} 42. Ne7+ {[%emt 0:00:46]} Kg4 {[%emt 0:00:00]} 43. d5 {[%emt 0:00:00]} f5 {[%emt 0:00:00]} 44. Bd4 {[%emt 0:00:00]} f4+ {[%emt 0:00:00]} 45. Ke2 {[%emt 0:00:00]} f3+ {[%emt 0:00:00]} 46. Kf1 {[%emt 0:00:00]} Bd6 {[%emt 0:00:00]} 47. Nc6 {[%emt 0:00:00]} Kf4 {[%emt 0:00:27]} 48. Bxa7 {[%emt 0:00:00]} Ke4 {[%emt 0:00:25]} 49. Nb4 {[%emt 0:00:00]} Bg3 {[%emt 0:03:45]} 50. Bf2 {[%emt 0:00:00]} Be5 {[%emt 0:00:05]} 51. b3 {[%emt 0:00:00]} Bd6 {[%emt 0:00:01]} 52. Ke1 {[%emt 0:00:00]} Bc8 {[%emt 0:00:05]} 53. Kf1 {[%emt 0:00:00]} Be5 {[%emt 0:00:58]} 54. a4 {[%emt 0:00:00]} Bh3+ {[%emt 0:00:35]} 55. Kg1 {[%emt 0:00:00]} Bd6 {[%emt 0:00:10]} 56. Nc2 {[%emt 0:00:00]} b4 {[%emt 0:00:45]} 57. a5 {[%emt 0:00:00]} Kxd5 {[%emt 0:00:48]} 58. a6 {[%emt 0:00:00]} Bc8 {[%emt 0:00:22]} 59. a7 {[%emt 0:00:00]} Bb7 {[%emt 0:00:01]} 60. Ne3+ {[%emt 0:34:27]} Ke4 {[%emt 0:01:45]} 61. Nc4 {[%emt 0:00:17]} Bc7 {[%emt 0:00:39]} 62. Bc5 {[%emt 0:00:20]} Kd3 {[%emt 0:00:47]} 63. Bxb4 {[%emt 0:00:34]} Ke2 {[%emt 0:00:30]} 64. Bc5 {[%emt 0:00:36]} Bg3 {[%emt 0:00:07]} 65. Bb6 {[%emt 0:02:19]} f2+ {[%emt 0:00:06]} 66. Bxf2 {[%emt 0:00:09]} Bxf2+ {[%emt 0:00:05]} 67. Kh2 {[%emt 0:00:10]} Bxa7 {[%emt 0:00:06]} 68. Kg3 {[%emt 0:00:10]} Kd3 {[%emt 0:00:26]} 69. Kf4 {[%emt 0:00:10]} Bb8+ {[%emt 0:00:30]} 70. Kf5 {[%emt 0:00:11]} Bc8+ {[%emt 0:00:27]} 71. Kf6 {[%emt 0:00:11]} Kc3 {[%emt 0:00:23]} 72. Nb6 {[%emt 0:00:17]} Bh3 {[%emt 0:00:16]} 73. Ke7 {[%emt 0:00:27]} Kxb3 {[%emt 0:00:09]} 74. Nd7 {[%emt 0:00:10]} Bg3 {[%emt 0:00:12]} 75. Nc5+ {[%emt 0:00:12]} Kc4 {[%emt 0:00:19]} 76. Ne4 {[%emt 0:00:12]} Bh4+ {[%emt 0:00:12]} 77. Kd6 {[%emt 0:00:10]} Kd4 {[%emt 0:00:27]} 78. Nc5 {[%emt 0:00:17]} Bg3+ {[%emt 0:00:36]} 79. Kc6 {[%emt 0:00:04]} Bg2+ {[%emt 0:00:37]} 80. Kb5 {[%emt 0:00:14]} Kd5 {[%emt 0:00:37]} 81. Nb3 {[%emt 0:00:41]} Be1 {[%emt 0:00:28]} 82. Na5 {[%emt 0:00:26]} Bh3 {[%emt 0:01:24]} 83. Kb6 {[%emt 0:00:17]} Bf2+ {[%emt 0:00:42]} 84. Kb5 {[%emt 0:00:31]} Bd7+ {[%emt 0:01:28]} 85. Ka6 {[%emt 0:00:26]} Kc5 {[%emt 0:00:23]} 86. Nb7+ {[%emt 0:01:01]} Kb4 {[%emt 0:00:15]} 87. Nd6 {[%emt 0:00:24]} Bc5 {[%emt 0:00:12]} 88. Nb7 {[%emt 0:00:09]} Bb5# {[%emt 0:00:01]} 0-1

[Event "Summer Prague Open-A 2024"]
[Site "Prague"]
[Date "2024.08.04"]
[Round "4.15"]
[White "Pujari, Rucha"]
[Black "Tynyshtyk, Diana"]
[Result "0-1"]
[Annotator "RC"]
[ECO "D78"]
[WhiteElo "2175"]
[BlackElo "1935"]
[PlyCount "58"]
[EventDate "2024.08.02"]
[EventType "swiss"]
[EventCountry "CZE"]
[SourceTitle "playchess.com"]
[Source "ChessBase"]
[SourceQuality "1"]
[TimeControl "40/5400+30:1800+30"]

1. d4 {[%emt 0:01:37]} Nf6 {[%emt 0:00:03]} 2. c4 {[%emt 0:00:15]} g6 {[%emt 0:00:03]} 3. Nf3 {[%emt 0:00:23]} Bg7 {[%emt 0:00:04]} 4. g3 {[%emt 0:00:02]} c6 {[%emt 0:00:08]} 5. Bg2 {[%emt 0:01:48]} d5 {[%emt 0:00:06]} 6. O-O {[%emt 0:01:02]} O-O {[%emt 0:00:03]} 7. a4 {[%emt 0:00:54]} Bf5 {[%emt 0:09:03]} 8. h3 {[%emt 0:07:01]} Qc8 {[%emt 0:05:23]} 9. g4 {[%emt 0:01:09]} Be6 {[%emt 0:02:26]} 10. Ng5 {[%emt 0:04:00]} Bd7 {[%emt 0:07:41]} 11. Nc3 {[%emt 0:17:55]} h6 {[%emt 0:03:30]} 12. Nf3 {[%emt 0:00:25]} h5 {[%emt 0:02:28]} 13. cxd5 {[%emt 0:05:22]} hxg4 {[%emt 0:05:10]} 14. hxg4 {[%emt 0:01:17]} Bxg4 {[%emt 0:04:19]} 15. Ng5 {[%emt 0:07:06]} cxd5 {[%emt 0:17:18]} 16. Nxd5 {[%emt 0:02:06]} Nxd5 {[%emt 0:00:30]} 17. Bxd5 {[%emt 0:00:07]} Nc6 {[%emt 0:03:39]} 18. Be3 {[%emt 0:09:32]} Bf6 {[%emt 0:07:21]} 19. Qd3 {[%emt 0:15:48]} Kg7 {[%emt 0:02:27]} 20. Rfc1 {[%emt 0:00:40]} Qd7 {[%emt 0:08:45]} 21. Qe4 {[%emt 0:03:29]} Rac8 {[%emt 0:13:16]} 22. Rc5 {[%emt 0:06:20]} Bf5 {[%emt 0:00:56]} 23. Qf4 {[%emt 0:01:00]} Nxd4 {[%emt 0:02:03]} 24. Bxd4 {[%emt 0:08:05]} Rxc5 {[%emt 0:00:04]} 25. Bxc5 {[%emt 0:00:57]} Qxd5 {[%emt 0:00:10]} 26. Bxa7 {[%emt 0:01:12]} Rh8 {[%emt 0:01:36]} 27. Nf3 {[%emt 0:01:20]} e5 {[%emt 0:01:17]} 28. Qd2 {[%emt 0:01:41]} Qe4 {[%emt 0:00:49]} 29. Nh2 {[%emt 0:01:43]} Qh4 {[%emt 0:00:08]} 0-1

[Event "Summer Prague Open-A 2024"]
[Site "Prague"]
[Date "2024.08.04"]
[Round "4.16"]
[White "Pahud, Cedric"]
[Black "Bohatyrov, Mykola"]
[Result "1/2-1/2"]
[Annotator "RC"]
[ECO "C01"]
[WhiteElo "2152"]
[BlackElo "1847"]
[PlyCount "96"]
[EventDate "2024.08.02"]
[EventType "swiss"]
[EventCountry "CZE"]
[SourceTitle "playchess.com"]
[Source "ChessBase"]
[SourceQuality "1"]
[TimeControl "40/5400+30:1800+30"]

1. e4 {[%emt 0:00:03]} e6 {[%emt 0:00:03]} 2. d4 {[%emt 0:00:13]} d5 {[%emt 0:00:04]} 3. exd5 {[%emt 0:00:16]} exd5 {[%emt 0:00:06]} 4. c4 {[%emt 0:00:11]} Nf6 {[%emt 0:01:10]} 5. Nc3 {[%emt 0:02:14]} Bb4 {[%emt 0:01:31]} 6. Nf3 {[%emt 0:09:33]} O-O {[%emt 0:01:35]} 7. Be2 {[%emt 0:00:11]} h6 {[%emt 0:03:49]} 8. O-O {[%emt 0:01:06]} b6 {[%emt 0:02:05]} 9. Qb3 {[%emt 0:06:29]} Bxc3 {[%emt 0:01:06]} 10. bxc3 {[%emt 0:00:02]} Ba6 {[%emt 0:00:52]} 11. Re1 {[%emt 0:00:59]} Nc6 {[%emt 0:03:23]} 12. cxd5 {[%emt 0:01:40]} Na5 {[%emt 0:00:55]} 13. Qa4 {[%emt 0:10:56]} Bxe2 {[%emt 0:00:25]} 14. Rxe2 {[%emt 0:00:02]} Qxd5 {[%emt 0:00:06]} 15. Ne5 {[%emt 0:11:41]} Rfe8 {[%emt 0:06:15]} 16. Bb2 {[%emt 0:10:40]} Nc4 {[%emt 0:01:52]} 17. Rae1 {[%emt 0:00:21]} b5 {[%emt 0:01:53]} 18. Qb3 {[%emt 0:03:06]} a5 {[%emt 0:09:29]} 19. Ba3 {[%emt 0:15:03]} a4 {[%emt 0:02:09]} 20. Qb4 {[%emt 0:00:14]} Nxe5 {[%emt 0:00:46]} 21. dxe5 {[%emt 0:01:22]} Nd7 {[%emt 0:03:59]} 22. Qd4 {[%emt 0:02:55]} Nb6 {[%emt 0:05:41]} 23. Bc5 {[%emt 0:01:32]} Qxd4 {[%emt 0:00:19]} 24. cxd4 {[%emt 0:00:31]} Nd5 {[%emt 0:00:06]} 25. a3 {[%emt 0:01:16]} Nf4 {[%emt 0:04:47]} 26. Rd2 {[%emt 0:01:35]} Rad8 {[%emt 0:00:29]} 27. Red1 {[%emt 0:03:27]} Ne6 {[%emt 0:01:37]} 28. Bb4 {[%emt 0:03:43]} Rd5 {[%emt 0:00:42]} 29. g3 {[%emt 0:02:26]} Red8 {[%emt 0:00:11]} 30. Bc3 {[%emt 0:00:35]} Ng5 {[%emt 0:03:00]} 31. Kg2 {[%emt 0:04:25]} Ne4 {[%emt 0:00:42]} 32. Rd3 {[%emt 0:00:13]} Nxc3 {[%emt 0:00:33]} 33. Rxc3 {[%emt 0:00:03]} c5 {[%emt 0:00:17]} 34. f4 {[%emt 0:03:06]} b4 {[%emt 0:09:05]} 35. Rc4 {[%emt 0:04:11]} b3 {[%emt 0:00:52]} 36. Rxa4 {[%emt 0:01:22]} Rxd4 {[%emt 0:00:08]} 37. Rdxd4 {[%emt 0:00:40]} Rxd4 {[%emt 0:00:21]} 38. Ra8+ {[%emt 0:00:15]} Kh7 {[%emt 0:00:04]} 39. Rb8 {[%emt 0:00:47]} c4 {[%emt 0:00:30]} 40. a4 {[%emt 0:00:33]} Rd2+ {[%emt 0:00:35]} 41. Kh3 {[%emt 0:04:40]} Ra2 {[%emt 0:01:17]} 42. f5 {[%emt 0:12:12]} Re2 {[%emt 0:01:46]} 43. e6 {[%emt 0:13:00]} fxe6 {[%emt 0:00:13]} 44. Rb4 {[%emt 0:00:26]} b2 {[%emt 0:00:35]} 45. fxe6 {[%emt 0:00:35]} c3 {[%emt 0:00:04]} 46. Kg4 {[%emt 0:02:03]} Rxe6 {[%emt 0:00:21]} 47. Kf5 {[%emt 0:00:15]} Rf6+ {[%emt 0:00:09]} 48. Ke4 {[%emt 0:00:09]} c2 {[%emt 0:00:04]} 1/2-1/2